[Event "FIDE World Junior U20-ch Girls 2025"]
[Site "Petrovac"]
[Date "2025.02.26"]
[Round "2.12"]
[White "Allahverdiyeva, Ayan"]
[Black "Tarasenka, Aliaksandra"]
[Result "1-0"]
[Annotator "ChessBase"]
[ECO "B40"]
[WhiteElo "2284"]
[BlackElo "2139"]
[PlyCount "39"]
[EventDate "2025.02.23"]
[EventType "swiss"]
[EventCountry "MNE"]
[SourceTitle "playchess.com"]
[Source "ChessBase"]
[SourceQuality "1"]
[TimeControl "40/5400+30:1800+30"]

1. e4 {[%emt 0:00:26]} c5 {[%emt 0:00:13]} 2. Nf3 {[%emt 0:00:05]} e6 {[%emt 0:00:11]} 3. d4 {[%emt 0:00:04]} cxd4 {[%emt 0:00:08]} 4. Nxd4 {[%emt 0:00:03]} Nf6 {[%emt 0:00:10]} 5. Nc3 {[%emt 0:00:04]} Nc6 {[%emt 0:00:11]} 6. a3 {[%emt 0:00:05]} Be7 {[%emt 0:00:54]} 7. Be3 {[%emt 0:00:07]} O-O {[%emt 0:00:48]} 8. Be2 {[%emt 0:00:06]} d6 {[%emt 0:00:44]} 9. Qd3 {[%emt 0:00:38]} Bd7 {[%emt 0:00:42]} 10. f4 {[%emt 0:00:24]} Rc8 {[%emt 0:00:27]} 11. O-O-O {[%emt 0:00:32]} Nxd4 {[%emt 0:01:14]} 12. Bxd4 {[%emt 0:00:05]} Qa5 {[%emt 0:02:49]} 13. Qg3 {[%emt 0:02:29]} Rfd8 {[%emt 0:28:21]} 14. Bf3 {[%emt 0:08:36]} Bc6 {[%emt 0:37:13]} 15. Rhe1 {[%emt 0:06:08]} b5 {[%emt 0:03:34]} 16. Nd5 {[%emt 0:18:57]} Bxd5 {[%emt 0:02:30]} 17. exd5 {[%emt 0:01:20]} b4 {[%emt 0:03:21]} 18. axb4 {[%emt 0:01:57]} Qxb4 {[%emt 0:04:16]} 19. dxe6 {[%emt 0:09:32]} fxe6 {[%emt 0:02:56]} 20. Rxe6 {[%emt 0:02:37]} 1-0

[Event "FIDE World Junior U20-ch Girls 2025"]
[Site "Petrovac"]
[Date "2025.02.26"]
[Round "2.13"]
[White "Valcu, Lavinia"]
[Black "Mungunzul, Bat-Erdene"]
[Result "0-1"]
[Annotator "ChessBase"]
[ECO "C85"]
[WhiteElo "2137"]
[BlackElo "2268"]
[PlyCount "80"]
[EventDate "2025.02.23"]
[EventType "swiss"]
[EventCountry "MNE"]
[SourceTitle "playchess.com"]
[Source "ChessBase"]
[SourceQuality "1"]
[TimeControl "40/5400+30:1800+30"]

1. e4 {[%emt 0:00:04]} e5 {[%emt 0:00:09]} 2. Nf3 {[%emt 0:00:04]} Nc6 {[%emt 0:00:07]} 3. Bb5 {[%emt 0:00:06]} a6 {[%emt 0:00:09]} 4. Ba4 {[%emt 0:00:04]} Nf6 {[%emt 0:00:07]} 5. O-O {[%emt 0:00:06]} Be7 {[%emt 0:00:17]} 6. Bxc6 {[%emt 0:00:09]} dxc6 {[%emt 0:02:53]} 7. Nc3 {[%emt 0:00:07]} Bg4 {[%emt 0:02:09]} 8. h3 {[%emt 0:00:07]} Bxf3 {[%emt 0:13:35]} 9. Qxf3 {[%emt 0:00:05]} Qd7 {[%emt 0:00:33]} 10. d3 {[%emt 0:04:47]} O-O-O {[%emt 0:03:04]} 11. Nd1 {[%emt 0:03:35]} Qe6 {[%emt 0:03:48]} 12. Ne3 {[%emt 0:01:49]} g6 {[%emt 0:00:25]} 13. a4 {[%emt 0:08:16]} h5 {[%emt 0:11:01]} 14. Bd2 {[%emt 0:03:41]} Nd7 {[%emt 0:01:31]} 15. b4 {[%emt 0:03:33]} Rdf8 {[%emt 0:06:18]} 16. b5 {[%emt 0:08:43]} f5 {[%emt 0:02:57]} 17. bxa6 {[%emt 0:03:09]} bxa6 {[%emt 0:00:08]} 18. exf5 {[%emt 0:13:53]} gxf5 {[%emt 0:03:11]} 19. Rfb1 {[%emt 0:01:24]} Rhg8 {[%emt 0:22:12]} 20. Bb4 {[%emt 0:06:32]} Bxb4 {[%emt 0:01:25]} 21. Rxb4 {[%emt 0:00:13]} f4 {[%emt 0:00:41]} 22. Nf1 {[%emt 0:05:52]} Rf6 {[%emt 0:01:15]} 23. Rab1 {[%emt 0:16:30]} Rfg6 {[%emt 0:01:10]} 24. Nd2 {[%emt 0:00:43]} Qd5 {[%emt 0:06:43]} 25. Ne4 {[%emt 0:00:59]} a5 {[%emt 0:00:13]} 26. R4b2 {[%emt 0:03:51]} Rxg2+ {[%emt 0:03:00]} 27. Qxg2 {[%emt 0:00:36]} f3 {[%emt 0:00:11]} 28. Qxg8+ {[%emt 0:06:49]} Qxg8+ {[%emt 0:00:12]} 29. Kf1 {[%emt 0:00:06]} Qg2+ {[%emt 0:01:13]} 30. Ke1 {[%emt 0:00:04]} Qxh3 {[%emt 0:00:21]} 31. Kd2 {[%emt 0:00:10]} Qg2 {[%emt 0:00:24]} 32. Kc3 {[%emt 0:03:30]} h4 {[%emt 0:00:14]} 33. Rd1 {[%emt 0:00:36]} h3 {[%emt 0:00:14]} 34. Rbb1 {[%emt 0:00:08]} h2 {[%emt 0:00:29]} 35. Rh1 {[%emt 0:00:42]} Nb6 {[%emt 0:03:36]} 36. Kb3 {[%emt 0:01:35]} Nd5 {[%emt 0:01:28]} 37. Kc4 {[%emt 0:02:50]} Nf4 {[%emt 0:00:25]} 38. Kc3 {[%emt 0:02:27]} Ne2+ {[%emt 0:00:13]} 39. Kc4 {[%emt 0:01:27]} Qg8+ {[%emt 0:00:18]} 40. Kc5 {[%emt 0:00:14]} Qd5# {[%emt 0:00:05]} 0-1

[Event "FIDE World Junior U20-ch Girls 2025"]
[Site "Petrovac"]
[Date "2025.02.26"]
[Round "2.14"]
[White "Ter-Avetisjana, Agnesa Stepania"]
[Black "Balabayeva, Xeniya"]
[Result "0-1"]
[Annotator "RC"]
[ECO "B10"]
[WhiteElo "2133"]
[BlackElo "2264"]
[PlyCount "132"]
[EventDate "2025.02.23"]
[EventType "swiss"]
[EventCountry "MNE"]
[SourceTitle "playchess.com"]
[Source "ChessBase"]
[SourceQuality "1"]
[TimeControl "40/5400+30:1800+30"]

1. e4 {[%emt 0:02:00]} c6 {[%emt 0:00:03]} 2. Nf3 {[%emt 0:00:09]} d5 {[%emt 0:00:08]} 3. d3 {[%emt 0:00:17]} g6 {[%emt 0:00:08]} 4. e5 {[%emt 0:03:58]} Bg7 {[%emt 0:00:08]} 5. Bf4 {[%emt 0:08:53]} c5 {[%emt 0:17:48]} 6. d4 {[%emt 0:10:37]} Bg4 {[%emt 0:16:58]} 7. Nc3 {[%emt 0:11:05]} cxd4 {[%emt 0:12:33]} 8. Qxd4 {[%emt 0:03:08]} Bxf3 {[%emt 0:00:11]} 9. gxf3 {[%emt 0:01:00]} Nc6 {[%emt 0:00:10]} 10. Qxd5 {[%emt 0:01:35]} Qxd5 {[%emt 0:00:11]} 11. Nxd5 {[%emt 0:00:12]} O-O-O {[%emt 0:00:08]} 12. O-O-O {[%emt 0:20:15]} e6 {[%emt 0:01:57]} 13. Bh3 {[%emt 0:05:17]} Bxe5 {[%emt 0:02:25]} 14. Bg3 {[%emt 0:05:52]} h5 {[%emt 0:14:11]} 15. Ne3 {[%emt 0:11:30]} h4 {[%emt 0:15:57]} 16. Bxe5 {[%emt 0:01:51]} Nxe5 {[%emt 0:01:15]} 17. f4 {[%emt 0:00:46]} Nc6 {[%emt 0:00:16]} 18. Nc4 {[%emt 0:00:48]} Nh6 {[%emt 0:02:40]} 19. Ne5 {[%emt 0:02:32]} Nxe5 {[%emt 0:05:57]} 20. fxe5 {[%emt 0:00:09]} g5 {[%emt 0:03:52]} 21. Rhg1 {[%emt 0:04:42]} Rhg8 {[%emt 0:01:25]} 22. Rxd8+ {[%emt 0:03:05]} Kxd8 {[%emt 0:00:01]} 23. f3 {[%emt 0:01:06]} Ke7 {[%emt 0:00:07]} 24. Rd1 {[%emt 0:00:53]} Rc8 {[%emt 0:02:22]} 25. Rg1 {[%emt 0:01:07]} Rg8 {[%emt 0:00:45]} 26. Rd1 {[%emt 0:00:00]} Rg6 {[%emt 0:00:05]} 27. Rd4 {[%emt 0:00:38]} f5 {[%emt 0:00:33]} 28. exf6+ {[%emt 0:00:18]} Rxf6 {[%emt 0:00:05]} 29. Re4 {[%emt 0:00:45]} Nf7 {[%emt 0:00:33]} 30. Bg4 {[%emt 0:00:29]} e5 {[%emt 0:01:28]} 31. Kd2 {[%emt 0:00:16]} Rd6+ {[%emt 0:00:11]} 32. Ke2 {[%emt 0:00:20]} Rc6 {[%emt 0:00:20]} 33. Kd2 {[%emt 0:00:39]} Kf6 {[%emt 0:00:06]} 34. Ra4 {[%emt 0:00:16]} a6 {[%emt 0:00:30]} 35. Rb4 {[%emt 0:00:40]} Nd6 {[%emt 0:00:18]} 36. Bd7 {[%emt 0:00:51]} Rc5 {[%emt 0:00:54]} 37. Bg4 {[%emt 0:00:29]} b5 {[%emt 0:00:32]} 38. a4 {[%emt 0:00:30]} a5 {[%emt 0:01:33]} 39. Rb3 {[%emt 0:00:01]} bxa4 {[%emt 0:00:34]} 40. Rb6 {[%emt 0:00:23]} Ke7 {[%emt 0:00:07]} 41. Ra6 {[%emt 0:30:47]} Nc4+ {[%emt 0:08:51]} 42. Kc1 {[%emt 0:00:00]} Ne3 {[%emt 0:00:10]} 43. Ra7+ {[%emt 0:00:00]} Kd6 {[%emt 0:01:03]} 44. c3 {[%emt 0:00:00]} a3 {[%emt 0:01:05]} 45. Ra6+ {[%emt 0:00:00]} Kc7 {[%emt 0:02:53]} 46. bxa3 {[%emt 0:00:00]} Nxg4 {[%emt 0:01:27]} 47. fxg4 {[%emt 0:00:00]} Rxc3+ {[%emt 0:00:05]} 48. Kb2 {[%emt 0:00:00]} Rh3 {[%emt 0:02:45]} 49. Rg6 {[%emt 0:00:00]} Rxh2+ {[%emt 0:02:13]} 50. Kc3 {[%emt 0:00:00]} Rg2 {[%emt 0:01:30]} 51. Rxg5 {[%emt 0:00:00]} Kd6 {[%emt 0:00:03]} 52. Kc4 {[%emt 0:00:00]} Rd2 {[%emt 0:07:33]} 53. Rg6+ {[%emt 0:00:00]} Ke7 {[%emt 0:01:14]} 54. g5 {[%emt 0:00:00]} h3 {[%emt 0:01:09]} 55. Rh6 {[%emt 0:00:00]} h2 {[%emt 0:00:53]} 56. Kc3 {[%emt 0:00:00]} Ra2 {[%emt 0:00:38]} 57. Kb3 {[%emt 0:00:00]} Re2 {[%emt 0:00:22]} 58. Kc4 {[%emt 0:00:00]} e4 {[%emt 0:02:36]} 59. a4 {[%emt 0:00:00]} Rd2 {[%emt 0:00:26]} 60. Kc3 {[%emt 0:00:00]} e3 {[%emt 0:00:13]} 61. Rh3 {[%emt 0:00:00]} Kf7 {[%emt 0:00:16]} 62. Rh6 {[%emt 0:00:38]} Kg7 {[%emt 0:00:19]} 63. Rh3 {[%emt 0:00:32]} Rf2 {[%emt 0:00:33]} 64. Kd3 {[%emt 0:00:06]} e2 {[%emt 0:00:04]} 65. Kd2 {[%emt 0:00:03]} Rf1 {[%emt 0:00:05]} 66. Kxe2 {[%emt 0:00:08]} h1=Q {[%emt 0:00:06]} 0-1

[Event "FIDE World Junior U20-ch Girls 2025"]
[Site "Petrovac"]
[Date "2025.02.26"]
[Round "2.15"]
[White "Hrebenshchykova, Yelyzaveta"]
[Black "Peglau, Dora"]
[Result "1-0"]
[Annotator "ChessBase"]
[ECO "D22"]
[WhiteElo "2259"]
[BlackElo "2134"]
[PlyCount "114"]
[EventDate "2025.02.23"]
[EventType "swiss"]
[EventCountry "MNE"]
[SourceTitle "playchess.com"]
[Source "ChessBase"]
[SourceQuality "1"]
[TimeControl "40/5400+30:1800+30"]

1. d4 {[%emt 0:00:02]} d5 {[%emt 0:00:08]} 2. c4 {[%emt 0:00:05]} dxc4 {[%emt 0:00:18]} 3. Nf3 {[%emt 0:02:02]} a6 {[%emt 0:02:12]} 4. e3 {[%emt 0:07:10]} Nf6 {[%emt 0:01:53]} 5. Bxc4 {[%emt 0:00:20]} e6 {[%emt 0:00:09]} 6. O-O {[%emt 0:01:06]} Nbd7 {[%emt 0:01:55]} 7. b3 {[%emt 0:12:06]} b5 {[%emt 0:01:56]} 8. Be2 {[%emt 0:00:16]} Bb7 {[%emt 0:00:24]} 9. Bb2 {[%emt 0:00:37]} c5 {[%emt 0:01:22]} 10. a4 {[%emt 0:03:30]} Qb6 {[%emt 0:07:15]} 11. Nc3 {[%emt 0:20:41]} b4 {[%emt 0:04:12]} 12. a5 {[%emt 0:00:32]} Qc7 {[%emt 0:05:58]} 13. Na4 {[%emt 0:08:07]} Be7 {[%emt 0:08:07]} 14. dxc5 {[%emt 0:05:43]} Nxc5 {[%emt 0:00:18]} 15. Nxc5 {[%emt 0:05:04]} Bxc5 {[%emt 0:01:59]} 16. Be5 {[%emt 0:01:42]} Qe7 {[%emt 0:05:05]} 17. Qc2 {[%emt 0:00:03]} Rc8 {[%emt 0:03:15]} 18. Qb2 {[%emt 0:00:15]} O-O {[%emt 0:01:46]} 19. Nd2 {[%emt 0:06:43]} Nd7 {[%emt 0:05:45]} 20. Bg3 {[%emt 0:02:18]} e5 {[%emt 0:06:58]} 21. Bf3 {[%emt 0:00:04]} Bxf3 {[%emt 0:01:08]} 22. Nxf3 {[%emt 0:00:04]} f6 {[%emt 0:00:45]} 23. Nd2 {[%emt 0:01:26]} Rfd8 {[%emt 0:02:39]} 24. Nc4 {[%emt 0:02:23]} Ba7 {[%emt 0:01:12]} 25. Rfd1 {[%emt 0:02:13]} Nc5 {[%emt 0:00:53]} 26. Qc2 {[%emt 0:02:37]} Qe6 {[%emt 0:05:41]} 27. Rxd8+ {[%emt 0:02:21]} Rxd8 {[%emt 0:00:01]} 28. Rd1 {[%emt 0:00:05]} Rd5 {[%emt 0:02:12]} 29. f3 {[%emt 0:01:56]} e4 {[%emt 0:03:16]} 30. Rxd5 {[%emt 0:04:07]} Qxd5 {[%emt 0:00:02]} 31. fxe4 {[%emt 0:00:05]} Nxe4 {[%emt 0:00:45]} 32. Bc7 {[%emt 0:04:22]} Nc3 {[%emt 0:01:54]} 33. Bb6 {[%emt 0:02:27]} Bb8 {[%emt 0:00:06]} 34. Qd2 {[%emt 0:00:03]} Kf7 {[%emt 0:08:16]} 35. Qxd5+ {[%emt 0:00:58]} Nxd5 {[%emt 0:00:01]} 36. Bc5 {[%emt 0:00:10]} Ke6 {[%emt 0:03:47]} 37. h3 {[%emt 0:00:26]} f5 {[%emt 0:02:47]} 38. Kf2 {[%emt 0:00:15]} g5 {[%emt 0:01:50]} 39. g4 {[%emt 0:01:38]} f4 {[%emt 0:08:49]} 40. Kf3 {[%emt 0:03:03]} fxe3 {[%emt 0:02:27]} 41. Bxe3 {[%emt 0:04:27]} Nxe3 {[%emt 0:18:25]} 42. Kxe3 {[%emt 0:01:18]} Be5 {[%emt 0:05:58]} 43. Kd3 {[%emt 0:11:00]} Bg3 {[%emt 0:04:03]} 44. Nb6 {[%emt 0:03:03]} Ke5 {[%emt 0:01:21]} 45. Nd7+ {[%emt 0:04:48]} Kf4 {[%emt 0:02:13]} 46. Nc5 {[%emt 0:02:45]} Bf2 {[%emt 0:01:06]} 47. Nxa6 {[%emt 0:00:51]} Kg3 {[%emt 0:00:05]} 48. Nxb4 {[%emt 0:01:09]} Kxh3 {[%emt 0:00:13]} 49. Ke2 {[%emt 0:04:20]} Kg3 {[%emt 0:01:21]} 50. Nc6 {[%emt 0:01:17]} Bg1 {[%emt 0:00:07]} 51. b4 {[%emt 0:00:45]} Kxg4 {[%emt 0:00:05]} 52. b5 {[%emt 0:00:25]} h5 {[%emt 0:00:37]} 53. b6 {[%emt 0:00:29]} h4 {[%emt 0:00:12]} 54. b7 {[%emt 0:00:43]} Bh2 {[%emt 0:00:59]} 55. a6 {[%emt 0:00:10]} Bb8 {[%emt 0:00:27]} 56. Nxb8 {[%emt 0:01:04]} h3 {[%emt 0:00:05]} 57. Kf2 {[%emt 0:00:03]} Kf4 {[%emt 0:00:37]} 1-0

[Event "FIDE World Junior U20-ch Girls 2025"]
[Site "Petrovac"]
[Date "2025.02.26"]
[Round "2.16"]
[White "Sulyok, Eszter"]
[Black "Kurmangaliyeva, Liya"]
[Result "1/2-1/2"]
[Annotator "ChessBase"]
[ECO "A20"]
[WhiteElo "2109"]
[BlackElo "2251"]
[PlyCount "107"]
[EventDate "2025.02.23"]
[EventType "swiss"]
[EventCountry "MNE"]
[SourceTitle "playchess.com"]
[Source "ChessBase"]
[SourceQuality "1"]
[TimeControl "40/5400+30:1800+30"]

1. c4 {[%emt 0:01:14]} e5 {[%emt 0:00:29]} 2. g3 {[%emt 0:01:01]} Nf6 {[%emt 0:00:19]} 3. Bg2 {[%emt 0:00:17]} c6 {[%emt 0:00:26]} 4. Nf3 {[%emt 0:01:20]} e4 {[%emt 0:01:23]} 5. Nd4 {[%emt 0:00:17]} Qb6 {[%emt 0:00:23]} 6. e3 {[%emt 0:02:59]} d5 {[%emt 0:01:09]} 7. cxd5 {[%emt 0:01:08]} cxd5 {[%emt 0:04:27]} 8. O-O {[%emt 0:07:03]} Nc6 {[%emt 0:03:08]} 9. d3 {[%emt 0:15:39]} Bg4 {[%emt 0:05:25]} 10. Qa4 {[%emt 0:04:56]} Bd7 {[%emt 0:17:22]} 11. dxe4 {[%emt 0:06:19]} dxe4 {[%emt 0:00:48]} 12. Nc3 {[%emt 0:01:47]} Bc5 {[%emt 0:06:50]} 13. Nxc6 {[%emt 0:04:21]} Qxc6 {[%emt 0:07:16]} 14. Qc2 {[%emt 0:00:46]} Bb4 {[%emt 0:03:17]} 15. Bd2 {[%emt 0:08:19]} O-O {[%emt 0:01:16]} 16. Rac1 {[%emt 0:03:04]} Bxc3 {[%emt 0:10:47]} 17. Bxc3 {[%emt 0:00:35]} Bf5 {[%emt 0:00:43]} 18. Qb1 {[%emt 0:04:26]} Rfe8 {[%emt 0:02:07]} 19. b4 {[%emt 0:02:48]} Qe6 {[%emt 0:03:41]} 20. Qb2 {[%emt 0:01:37]} Ng4 {[%emt 0:04:52]} 21. Rfd1 {[%emt 0:09:37]} Ne5 {[%emt 0:07:13]} 22. Bxe5 {[%emt 0:00:10]} Qxe5 {[%emt 0:00:05]} 23. Qxe5 {[%emt 0:00:21]} Rxe5 {[%emt 0:00:05]} 24. Rc7 {[%emt 0:00:08]} Rb5 {[%emt 0:02:31]} 25. Rd4 {[%emt 0:00:13]} a5 {[%emt 0:01:23]} 26. Bxe4 {[%emt 0:01:35]} Bxe4 {[%emt 0:02:01]} 27. Rxe4 {[%emt 0:03:21]} Rxb4 {[%emt 0:02:03]} 28. Ree7 {[%emt 0:09:27]} Rf8 {[%emt 0:00:05]} 29. Rxb7 {[%emt 0:00:05]} Ra4 {[%emt 0:00:10]} 30. Rb2 {[%emt 0:00:06]} g6 {[%emt 0:00:25]} 31. e4 {[%emt 0:02:23]} h5 {[%emt 0:04:00]} 32. h4 {[%emt 0:02:31]} Rd8 {[%emt 0:01:07]} 33. e5 {[%emt 0:03:01]} Re4 {[%emt 0:01:12]} 34. Rbb7 {[%emt 0:02:36]} Rf8 {[%emt 0:00:37]} 35. Ra7 {[%emt 0:00:14]} Ra4 {[%emt 0:02:51]} 36. e6 {[%emt 0:01:56]} Rxa2 {[%emt 0:00:16]} 37. Kg2 {[%emt 0:00:21]} a4 {[%emt 0:01:28]} 38. Red7 {[%emt 0:00:47]} Re2 {[%emt 0:00:52]} 39. exf7+ {[%emt 0:00:31]} Kg7 {[%emt 0:00:05]} 40. Rxa4 {[%emt 0:00:10]} Rxf7 {[%emt 0:00:13]} 41. Rxf7+ {[%emt 0:30:06]} Kxf7 {[%emt 0:30:03]} 42. Kf3 {[%emt 0:00:27]} Rb2 {[%emt 0:00:50]} 43. Ke3 {[%emt 0:00:16]} Kf6 {[%emt 0:01:21]} 44. f3 {[%emt 0:00:17]} Rb5 {[%emt 0:01:01]} 45. g4 {[%emt 0:01:02]} hxg4 {[%emt 0:00:47]} 46. fxg4 {[%emt 0:01:02]} Rb1 {[%emt 0:00:16]} 47. Ra6+ {[%emt 0:00:39]} Kg7 {[%emt 0:00:16]} 48. Ra4 {[%emt 0:00:00]} Kf6 {[%emt 0:00:00]} 49. g5+ {[%emt 0:00:00]} Kf5 {[%emt 0:00:00]} 50. Rf4+ {[%emt 0:00:00]} Ke5 {[%emt 0:00:00]} 51. Rf6 {[%emt 0:00:00]} Rh1 {[%emt 0:00:00]} 52. Rxg6 {[%emt 0:00:00]} Rxh4 {[%emt 0:00:00]} 53. Ra6 {[%emt 0:00:00]} Kf5 {[%emt 0:00:00]} 54. Ra5+ {[%emt 0:00:00]} 1/2-1/2

[Event "FIDE World Junior U20-ch Girls 2025"]
[Site "Petrovac"]
[Date "2025.02.26"]
[Round "2.17"]
[White "Mikheeva, Galina"]
[Black "Mihelic, Vesna"]
[Result "1/2-1/2"]
[Annotator "ChessBase"]
[ECO "C54"]
[WhiteElo "2238"]
[BlackElo "2115"]
[PlyCount "67"]
[EventDate "2025.02.23"]
[EventType "swiss"]
[EventCountry "MNE"]
[SourceTitle "playchess.com"]
[Source "ChessBase"]
[SourceQuality "1"]
[TimeControl "40/5400+30:1800+30"]

1. e4 {[%emt 0:00:03]} e5 {[%emt 0:00:06]} 2. Nf3 {[%emt 0:00:05]} Nc6 {[%emt 0:00:04]} 3. Bc4 {[%emt 0:00:04]} Bc5 {[%emt 0:00:06]} 4. c3 {[%emt 0:00:05]} Nf6 {[%emt 0:00:10]} 5. d3 {[%emt 0:00:04]} a6 {[%emt 0:00:54]} 6. O-O {[%emt 0:00:07]} Ba7 {[%emt 0:00:09]} 7. Bg5 {[%emt 0:01:41]} d6 {[%emt 0:01:07]} 8. a4 {[%emt 0:01:54]} O-O {[%emt 0:05:36]} 9. Nbd2 {[%emt 0:00:38]} Be6 {[%emt 0:03:05]} 10. Re1 {[%emt 0:06:09]} Qe7 {[%emt 0:02:36]} 11. b4 {[%emt 0:03:14]} h6 {[%emt 0:02:40]} 12. Bh4 {[%emt 0:00:35]} Bxc4 {[%emt 0:02:37]} 13. Nxc4 {[%emt 0:00:39]} Qe6 {[%emt 0:00:25]} 14. Bxf6 {[%emt 0:10:47]} Qxf6 {[%emt 0:00:57]} 15. Ne3 {[%emt 0:00:31]} Ne7 {[%emt 0:02:50]} 16. d4 {[%emt 0:07:19]} Qe6 {[%emt 0:22:09]} 17. Qd3 {[%emt 0:17:29]} Ng6 {[%emt 0:11:46]} 18. g3 {[%emt 0:04:35]} Rfe8 {[%emt 0:05:38]} 19. d5 {[%emt 0:04:06]} Qh3 {[%emt 0:07:30]} 20. Nf5 {[%emt 0:13:36]} Qg4 {[%emt 0:02:57]} 21. Kf1 {[%emt 0:04:22]} Qh3+ {[%emt 0:01:14]} 22. Kg1 {[%emt 0:00:06]} Qg4 {[%emt 0:00:45]} 23. Kf1 {[%emt 0:09:32]} Qh3+ {[%emt 0:09:21]} 24. Ke2 {[%emt 0:00:07]} Ne7 {[%emt 0:02:03]} 25. Nxe7+ {[%emt 0:07:58]} Rxe7 {[%emt 0:00:02]} 26. Nh4 {[%emt 0:00:26]} g6 {[%emt 0:04:33]} 27. Qf3 {[%emt 0:01:22]} Kg7 {[%emt 0:00:26]} 28. Qg2 {[%emt 0:02:22]} Qg4+ {[%emt 0:01:03]} 29. Kf1 {[%emt 0:01:10]} Rf8 {[%emt 0:06:12]} 30. h3 {[%emt 0:00:55]} Qd7 {[%emt 0:01:01]} 31. g4 {[%emt 0:00:26]} Ree8 {[%emt 0:01:01]} 32. Qg3 {[%emt 0:01:39]} c6 {[%emt 0:02:30]} 33. Red1 {[%emt 0:01:28]} Rc8 {[%emt 0:01:29]} 34. Kg2 {[%emt 0:01:05]} 1/2-1/2

[Event "FIDE World Junior U20-ch Girls 2025"]
[Site "Petrovac"]
[Date "2025.02.26"]
[Round "2.18"]
[White "Sneha Halder"]
[Black "Zhapova, Yana"]
[Result "1/2-1/2"]
[Annotator "ChessBase"]
[ECO "D02"]
[WhiteElo "2065"]
[BlackElo "2234"]
[PlyCount "93"]
[EventDate "2025.02.23"]
[EventType "swiss"]
[EventCountry "MNE"]
[SourceTitle "playchess.com"]
[Source "ChessBase"]
[SourceQuality "1"]
[TimeControl "40/5400+30:1800+30"]

1. d4 {[%emt 0:00:11]} Nf6 {[%emt 0:00:17]} 2. Nf3 {[%emt 0:01:01]} d5 {[%emt 0:00:19]} 3. Bf4 {[%emt 0:00:50]} c5 {[%emt 0:03:42]} 4. e3 {[%emt 0:04:09]} Nc6 {[%emt 0:01:25]} 5. c3 {[%emt 0:00:49]} e6 {[%emt 0:01:30]} 6. Nbd2 {[%emt 0:01:24]} Be7 {[%emt 0:00:50]} 7. Bd3 {[%emt 0:00:45]} Nh5 {[%emt 0:02:53]} 8. Bg3 {[%emt 0:00:34]} Nxg3 {[%emt 0:04:31]} 9. hxg3 {[%emt 0:00:09]} h6 {[%emt 0:00:17]} 10. Rc1 {[%emt 0:04:17]} Bd6 {[%emt 0:07:08]} 11. Bb1 {[%emt 0:16:44]} e5 {[%emt 0:05:58]} 12. dxe5 {[%emt 0:06:10]} Nxe5 {[%emt 0:00:26]} 13. Nxe5 {[%emt 0:02:54]} Bxe5 {[%emt 0:00:07]} 14. Qh5 {[%emt 0:00:17]} Bf6 {[%emt 0:09:49]} 15. Rd1 {[%emt 0:01:43]} Qb6 {[%emt 0:08:43]} 16. Qxd5 {[%emt 0:04:55]} Be6 {[%emt 0:01:00]} 17. Nc4 {[%emt 0:03:45]} Bxd5 {[%emt 0:01:35]} 18. Nxb6 {[%emt 0:00:02]} Bxg2 {[%emt 0:01:08]} 19. Nxa8 {[%emt 0:00:20]} Bxh1 {[%emt 0:00:07]} 20. Nc7+ {[%emt 0:00:47]} Ke7 {[%emt 0:02:58]} 21. e4 {[%emt 0:00:16]} Bf3 {[%emt 0:00:58]} 22. Rd5 {[%emt 0:03:46]} Rc8 {[%emt 0:10:44]} 23. Nb5 {[%emt 0:10:19]} a6 {[%emt 0:03:26]} 24. Nd6 {[%emt 0:00:59]} Rd8 {[%emt 0:00:34]} 25. Nf5+ {[%emt 0:01:27]} Kf8 {[%emt 0:00:21]} 26. Rxd8+ {[%emt 0:05:54]} Bxd8 {[%emt 0:00:20]} 27. Bd3 {[%emt 0:06:09]} g6 {[%emt 0:06:30]} 28. Nd6 {[%emt 0:01:00]} b5 {[%emt 0:01:37]} 29. Be2 {[%emt 0:03:09]} Bxe2 {[%emt 0:10:57]} 30. Kxe2 {[%emt 0:00:02]} f6 {[%emt 0:00:24]} 31. e5 {[%emt 0:09:01]} fxe5 {[%emt 0:00:35]} 32. Ne4 {[%emt 0:00:04]} Be7 {[%emt 0:01:03]} 33. b3 {[%emt 0:00:06]} Kf7 {[%emt 0:01:05]} 34. c4 {[%emt 0:01:33]} b4 {[%emt 0:02:50]} 35. f3 {[%emt 0:03:43]} Ke6 {[%emt 0:00:48]} 36. Nf2 {[%emt 0:02:24]} Kf5 {[%emt 0:02:36]} 37. Kd3 {[%emt 0:04:47]} h5 {[%emt 0:01:39]} 38. Ke3 {[%emt 0:00:45]} Bg5+ {[%emt 0:01:20]} 39. Ke2 {[%emt 0:00:18]} Bh6 {[%emt 0:01:59]} 40. Kd3 {[%emt 0:02:21]} g5 {[%emt 0:01:38]} 41. Ke2 {[%emt 0:30:37]} h4 {[%emt 0:07:32]} 42. Ng4 {[%emt 0:00:00]} Bf8 {[%emt 0:02:52]} 43. Ne3+ {[%emt 0:00:00]} Ke6 {[%emt 0:01:08]} 44. Nf1 {[%emt 0:00:00]} Bd6 {[%emt 0:03:05]} 45. Ke3 {[%emt 0:00:00]} Kf5 {[%emt 0:06:45]} 46. g4+ {[%emt 0:00:02]} Ke6 {[%emt 0:00:05]} 47. Ke4 {[%emt 0:00:04]} 1/2-1/2

[Event "FIDE World Junior U20-ch Girls 2025"]
[Site "Petrovac"]
[Date "2025.02.26"]
[Round "2.19"]
[White "Omonova, Umida"]
[Black "Zelbova, Lada"]
[Result "1-0"]
[Annotator "ChessBase"]
[ECO "B52"]
[WhiteElo "2228"]
[BlackElo "1994"]
[PlyCount "53"]
[EventDate "2025.02.23"]
[EventType "swiss"]
[EventCountry "MNE"]
[SourceTitle "playchess.com"]
[Source "ChessBase"]
[SourceQuality "1"]
[TimeControl "40/5400+30:1800+30"]

1. e4 {[%emt 0:01:06]} c5 {[%emt 0:00:08]} 2. Nf3 {[%emt 0:00:08]} d6 {[%emt 0:00:07]} 3. Bb5+ {[%emt 0:00:58]} Bd7 {[%emt 0:00:12]} 4. Bxd7+ {[%emt 0:00:08]} Nxd7 {[%emt 0:00:07]} 5. O-O {[%emt 0:00:23]} Ngf6 {[%emt 0:00:24]} 6. Qe2 {[%emt 0:00:32]} e6 {[%emt 0:00:45]} 7. b3 {[%emt 0:01:44]} Rc8 {[%emt 0:06:50]} 8. Bb2 {[%emt 0:00:58]} g6 {[%emt 0:03:14]} 9. c4 {[%emt 0:03:30]} Bg7 {[%emt 0:00:19]} 10. d4 {[%emt 0:00:49]} cxd4 {[%emt 0:00:27]} 11. Nxd4 {[%emt 0:01:19]} a6 {[%emt 0:01:24]} 12. Nc3 {[%emt 0:02:51]} O-O {[%emt 0:01:16]} 13. Rad1 {[%emt 0:01:20]} Qa5 {[%emt 0:02:38]} 14. Kh1 {[%emt 0:04:44]} Rc7 {[%emt 0:10:46]} 15. f3 {[%emt 0:06:00]} Rfc8 {[%emt 0:01:04]} 16. Na4 {[%emt 0:01:10]} Qh5 {[%emt 0:03:43]} 17. g4 {[%emt 0:03:03]} Qh4 {[%emt 0:02:46]} 18. Rg1 {[%emt 0:03:02]} e5 {[%emt 0:07:08]} 19. Nc2 {[%emt 0:03:59]} b5 {[%emt 0:01:12]} 20. Nc3 {[%emt 0:00:01]} bxc4 {[%emt 0:01:48]} 21. b4 {[%emt 0:00:12]} Bf8 {[%emt 0:08:42]} 22. Bc1 {[%emt 0:06:20]} h5 {[%emt 0:08:42]} 23. g5 {[%emt 0:00:41]} Nh7 {[%emt 0:01:03]} 24. Rg3 {[%emt 0:01:40]} f6 {[%emt 0:05:48]} 25. Qg2 {[%emt 0:01:11]} Nxg5 {[%emt 0:01:44]} 26. Rxg5 {[%emt 0:00:43]} fxg5 {[%emt 0:06:20]} 27. Bxg5 {[%emt 0:00:49]} 1-0